Cogmind - Beta 17 @@@ ROGUE MODE // 2026.08.04 @ 22:49:55 Player: Sysandra Result: Destroyed by Y-45 Defender with Beam Rifle Performance ------------- Evolutions (1) 500 Regions Visited (3) 600 Robots Destroyed (25) 125 Value Destroyed (588) 588 Prototype IDs (0) 0 Alien Tech Used (0) 0 Bonus (0) 0 TOTAL SCORE: 1813 Bonus ------- None Cogmind --------- Core Integrity 0/400 Matter 278/300 Energy 250/250 System Corruption 2% Temperature Cool (9) Movement Walking (120) Location -9/Storage Parts ------- > --- POWER (1) -------- Ion Engine > --- PROPULSION (2) --- Aluminum Leg Aluminum Leg > --- UTILITY (4) ------ Transport Network Coupler Utility Shielding Hacking Suite > --- WEAPON (2) ------- Heavy Assault Rifle Improved Light Cannon > --- INVENTORY (5) ---- Heat Sink Heat Sink Beam Cannon Peak State ------------ > --- POWER ------------ Ion Engine > --- PROPULSION ------- Improved Aluminum Leg Improved Aluminum Leg > --- UTILITY ---------- Structural Scanner Targeting Computer Utility Shielding Light Armor Plating > --- WEAPON ----------- Heavy EM Pulse Gun Heavy EM Pulse Gun > --- INVENTORY -------- (None) [Rating: 13] Favorites ----------- Power Ion Engine Engine Ion Engine Propulsion Aluminum Leg Leg Aluminum Leg Hover Unit Hover Unit Utility Targeting Computer Device Structural Scanner Processor Targeting Computer Hackware Hacking Suite Protection Utility Shielding Weapon Heavy Assault Rifle Energy Gun Heavy EM Pulse Gun Ballistic Gun Heavy Assault Rifle Ballistic Cannon Improved Light Cannon Build | -11 -10 -9 -9 ------- Run | Yrd Mat Mat Sto Slots Evolved 2 | . . 2 . Power . | . . . . Propulsion . | . . . . Utility 2 | . . 2 . Weapon . | . . . . Parts Attached 27 | 5 6 4 12 Power 3 | 1 . . 2 Engine 3 | 1 . . 2 Core . | . . . . Reactor . | . . . . Propulsion 7 | 2 2 . 3 Treads . | . . . . Leg 6 | 2 2 . 2 Wheel . | . . . . Hover 1 | . . . 1 Flight . | . . . . Utility 7 | . 2 2 3 Device 1 | . . 1 . Storage . | . . . . Processor 2 | . 1 . 1 Hackware 1 | . . . 1 Protection 3 | . 1 1 1 Artifact . | . . . . Weapon 10 | 2 2 2 4 Energy Gun 6 | 2 . 2 2 Energy Cannon . | . . . . Ballistic Gun 3 | . 2 . 1 Ballistic Cannon 1 | . . . 1 Launcher . | . . . . Special Weapon . | . . . . Impact Weapon . | . . . . Slashing Weapon . | . . . . Piercing Weapon . | . . . . Special Melee Weapon . | . . . . Unidentified Prototypes . | . . . . Parts Lost 12 | . . 7 5 Power 2 | . . 1 1 Propulsion 3 | . . 2 1 Utility 4 | . . 2 2 Weapon 3 | . . 2 1 Highest Loss Streak 6 | . . 6 2 To Critical Strikes . | . . . . Average Backups . | . . . 1 Power . | . . . . Propulsion . | . . . . Utility . | . . . 1 Weapon . | . . . . Tool/Special . | . . . . Unused Backups 3 | . . . 3 Power . | . . . . Propulsion . | . . . . Utility 2 | . . . 2 Weapon 1 | . . . 1 Tool/Special . | . . . . Average Slot Usage (%) 82 | . 93 87 72 Engine 10 | . 14 10 8 Leg 17 | . 28 21 7 Hover 1 | . . . 2 Device 3 | . . 11 . Processor 10 | . 10 11 10 Hackware 4 | . . . 9 Protection 14 | . 10 13 16 Energy Gun 11 | . 24 11 4 Ballistic Gun 6 | . 3 8 6 Ballistic Cannon 2 | . . . 5 Peak Build Rating 13 | 5 11 13 13 Average Rating 9 | 3 6 11 10 On Entrance 4 | . 5 11 2 Avg Prop Armor Cover (%) 15 | . . . 15 Naked Turns . | . . . . Heaviest Build 16 | 9 14 16 16 Greatest Support 26 | 20 26 26 20 Greatest Overweight (x) 3 | . . . 3 Average Overweight (x) . | . . . . Largest Inventory Capacity 5 | 5 5 5 5 Average Capacity 5 | 5 5 5 5 Most Carried 5 | 5 5 4 4 Average Carried . | 1 . . 1 Final Capacity 5 | 5 5 5 5 Final Carried 3 | . 1 . 3 Class Distribution -------------------- 74% | Mutant 25% | Scavenger-Mutant Dominant Class ---------------- Mutant | -10/Materials Mutant | -9/Materials Scavenger-Mutant | -9/Storage Resources | -11 -10 -9 -9 ----------- Run | Yrd Mat Mat Sto Matter Collected 570 | 168 75 38 289 Remotely . | . . . . Salvage Created 776 | . 162 199 415 Parts 57 | . 12 11 34 Haulers Intercepted 2 | . . 1 1 Recyclers Shooed . | . . . . Parts Field Recycled . | . . . . Retrieved Matter . | . . . . Parts Self-Destructed . | . . . . Prevented . | . . . . Parts Restored . | . . . . Kills | -11 -10 -9 -9 ------- Run | Yrd Mat Mat Sto Combat Hostiles Destroyed 19 | . 3 5 11 Guns 14 | . 3 5 6 Cannons 5 | . . . 5 Classes Destroyed 7 | . 3 3 1 Worker 1 | . . 1 . Builder 1 | . 1 . . Hauler 2 | . . 1 1 Operator 2 | . 1 . 1 Swarmer 6 | . . 3 3 Grunt 9 | . 3 2 4 Sentry 4 | . . . 4 Best Kill Streak 6 | . 4 6 5 Combat Bots Only 5 | . 3 5 5 Max Kills in Single Turn 2 | . 2 2 1 Gunslinging . | . . . . Exploded . | . . . . Melee . | . . . . Uniques/NPCs Destroyed . | . . . . Combat | -11 -10 -9 -9 -------- Run | Yrd Mat Mat Sto Hostile Shots Fired 191 | . 14 88 89 Missed 59 | . 1 27 31 Hits 132 | . 13 61 58 Projectile 132 | . 13 61 58 Critical Strikes 1 | . . 1 . Damage Taken 1539 | . 137 620 782 Core 413 | . 10 130 273 Absorbed by Shields . | . . . . Redirected to Shielding 15 | . . 10 5 Core Remaining (%) 98 | 100 96 . . Volleys Fired 62 | . 8 25 29 Largest 2 | . 2 2 2 Hottest 130 | . 90 90 130 Shots Fired 115 | . 16 46 53 Gun 100 | . 16 46 38 Cannon 15 | . . . 15 Launcher . | . . . . Special . | . . . . Kinetic 51 | . . 20 31 Thermal 30 | . 8 . 22 Explosive . | . . . . Electromagnetic 34 | . 8 26 . Robot Hit Streak 7 | . 3 3 7 Robot Miss Streak 4 | . 2 4 3 Penetration Max . | . . . . Secondary Targets 3 | . 1 1 1 Max Gunslinging Chain 1 | . 1 1 1 Shots Hit Robots 60 | . 8 21 31 Core Hits 36 | . 7 10 19 Critical Kills . | . . . . Critical Parts Destroyed 1 | . . . 1 Critical Strikes 2 | . . 1 1 Destroy 1 | . . . 1 Corrupt 1 | . . 1 . Melee Attacks . | . . . . Impact . | . . . . Slashing . | . . . . Piercing . | . . . . Sneak Attacks . | . . . . Combat Hostiles . | . . . . Follow-up Attacks . | . . . . Damage Inflicted 1093 | . 120 383 590 Guns 816 | . 120 383 313 Cannons 236 | . . . 236 Explosions . | . . . . Melee . | . . . . Ramming 41 | . . . 41 Kinetic 505 | . . 163 342 Thermal 233 | . 26 . 207 Explosive . | . . . . Electromagnetic 314 | . 94 220 . Impact . | . . . . Slashing . | . . . . Piercing . | . . . . Highest Corruption 2 | . . . 2 Average Corruption 1 | . . . 1 Corruption Purged . | . . . . Corruption Blocked . | . . . . Effects 7 | . . . 7 Message Errors 2 | . . . 2 Matter Fused 1 | . . . 1 Heat Flow Errors 1 | . . . 1 Energy Discharges 1 | . . . 1 Data Loss (minor) 1 | . . . 1 Alerts 1 | . . . 1 Overload Shots . | . . . . Overflow Damage . | . . . . Projectiles . | . . . . Explosions . | . . . . Melee . | . . . . Knockbacks 1 | . . . 1 Impact . | . . . . Kinetic 1 | . . . 1 Secondary . | . . . . Self-Inflicted Damage 10 | . . . 10 Shots . | . . . . Rammed 6 | . . . 6 Targets Rammed 11 | . . . 11 Kicked 5 | . . . 5 Crushed . | . . . . Highest Temperature 430 | . 235 252 430 Average Temperature 146 | . 104 133 182 Received Heat Transfer 423 | . 78 102 243 Effects 8 | . 3 . 5 Energy Bleed 1 | . . . 1 Interference 3 | . 3 . . Matter Decay 1 | . . . 1 Short Circuit 1 | . . . 1 Damage (minor) 2 | . . . 2 Siege Activations . | . . . . Martial Activations . | . . . . Shielding Activations . | . . . . Robots Disrupted . | . . . . Combat Hostiles . | . . . . Robots Corrupted . | . . . . Combat Hostiles . | . . . . Parts Fried 1 | . . 1 . Impact Corruptions . | . . . . Robots Melted . | . . . . Combat Hostiles . | . . . . Parts Melted . | . . . . Heat Transferred 555 | . 74 . 481 Parts Sabotaged . | . . . . Parts Stolen . | . . . . Parts Stripped . | . . . . Power Chain Reactions . | . . . . Alert | -11 -10 -9 -9 ------- Run | Yrd Mat Mat Sto Maximum Alert Level . | . . . . Low Security (%) 100 | 100 100 100 100 Level 1 . | . . . . Level 2 . | . . . . Level 3 . | . . . . Level 4 . | . . . . Level 5 . | . . . . High Security . | . . . . Max Security . | . . . . Peak Influence 125 | . 75 125 110 Initial 22 | . . 22 16 Average 25 | . 19 45 20 Influence Increases 551 | . 92 177 282 Destroy 0b10 Robot/C 380 | . 60 100 220 Destroy 0b10 Robot/NC 30 | . 10 10 10 Destroy Leader 94 | . 20 22 52 Successful Hack 2 | . 2 . . Lose Combat Pursuer 45 | . . 45 . Influence Decreases 449 | . 37 192 220 Entered New Map 57 | . . 33 24 Time Decay 292 | . 37 89 166 Lost Part 100 | . . 70 30 Squads Dispatched 3 | . 2 1 . Investigation 1 | . 1 . . Extermination . | . . . . Reinforcement 2 | . 1 1 . Assault . | . . . . Garrison . | . . . . Intercept . | . . . . Searches Triggered . | . . . . Construction Impeded . | . . . . Haulers Reinforced . | . . . . Active Scanning Responses . | . . . . Cargo Convoy Interrupts . | . . . . Stealth | -11 -10 -9 -9 --------- Run | Yrd Mat Mat Sto Distress Signals 5 | . 2 1 2 Communications Jammed . | . . . . Distress Signals . | . . . . Times Spotted 39 | . 6 17 16 Peak Tracking Total 14 | . 2 14 6 Tactical Retreats 2 | . . 2 . Traps | -11 -10 -9 -9 ------- Run | Yrd Mat Mat Sto Traps Triggered 3 | . . . 3 Indirectly . | . . . . Trap Hack Attempts . | . . . . Triggered . | . . . . Disarmed . | . . . . Reprogrammed . | . . . . Reused . | . . . . Traps Extracted . | . . . . Installed . | . . . . Triggered . | . . . . Machines | -11 -10 -9 -9 ---------- Run | Yrd Mat Mat Sto Machines Disabled . | . . . . Max in Single Turn . | . . . . Machines Repaired . | . . . . Machines Dismantled . | . . . . Machines Sabotaged . | . . . . Overloaded Fab Kills . | . . . . Hacking | -11 -10 -9 -9 --------- Run | Yrd Mat Mat Sto Machines Accessed 4 | . 3 . 1 Terminals 4 | . 3 . 1 Fabricators . | . . . . Repair Stations . | . . . . Recycling Units . | . . . . Scanalyzers . | . . . . Garrison Access . | . . . . Total Hacks 9 | . 6 . 3 Successful 7 | . 4 . 3 Failed 2 | . 2 . . Catastrophic . | . . . . Database Lockouts . | . . . . Manual . | . . . . Terminals 9 | . 6 . 3 Fabricators . | . . . . Repair Stations . | . . . . Recycling Units . | . . . . Scanalyzers . | . . . . Garrison Access . | . . . . Terminal Hacks 7 | . 4 . 3 Record 3 | . 1 . 2 Emergency Access Points 1 | . . . 1 Dispatch Records 1 | . 1 . . Recall Investigation 1 | . 1 . . Hauler Manifests 1 | . 1 . . Fabricator Hacks . | . . . . Repair Station Hacks . | . . . . Recycling Unit Hacks . | . . . . Scanalyzer . | . . . . Garrison Access Hacks . | . . . . Unauthorized Hacks . | . . . . Terminals . | . . . . Fabricators . | . . . . Repair Stations . | . . . . Recycling Units . | . . . . Scanalyzers . | . . . . Garrison Access . | . . . . Data Cores Recovered 1 | . . . 1 Used . | . . . . Hacking Detections 1 | . 1 . . Full Trace Events 1 | . 1 . . Feedback Events . | . . . . Feedback Blocked . | . . . . Robot Schematics Acquired . | . . . . Robots Built . | . . . . Authchips . | . . . . Time . | . . . . Total Robot Build Rating . | . . . . Part Schematics Acquired . | . . . . Parts Built . | . . . . Authchips . | . . . . Time . | . . . . Total Part Build Rating . | . . . . Part Studies Acquired . | . . . . Parts Repaired . | . . . . Time . | . . . . Parts Recycled . | . . . . Recycled Matter . | . . . . Retrieved Matter . | . . . . Retrieved Components . | . . . . Parts Scanalyzed . | . . . . Part Schematics Acquired . | . . . . Parts Damaged . | . . . . Bothacking | -11 -10 -9 -9 ------------ Run | Yrd Mat Mat Sto Used RIF Installer . | . . . . Robots Hacked . | . . . . Non-combat . | . . . . Combat . | . . . . Robot Hacks Applied . | . . . . Relay Couplers Released . | . . . . Fabnet Peak Effective % . | . . . . Robots Rewired . | . . . . Allies Hacked . | . . . . Hacks Repelled . | . . . . Allies | -11 -10 -9 -9 -------- Run | Yrd Mat Mat Sto Total Allies . | . . . . Largest Group . | . . . . Highest-Rated Group . | . . . . Highest-Rated Ally . | . . . . Total Orders . | . . . . Ally Attacks . | . . . . Total Damage . | . . . . Kills . | . . . . Allies Corrupted . | . . . . Allies Melted . | . . . . Intel | -11 -10 -9 -9 ------- Run | Yrd Mat Mat Sto Active Infowar (turns) 503 | . . 263 240 Structural 263 | . . 263 . T.N.C. 240 | . . . 240 Robot Analysis Total . | . . . . Derelict Logs Recovered . | . . . . Drone Launches . | . . . . Drone Recoveries . | . . . . Exploration | -11 -10 -9 -9 ------------- Run | Yrd Mat Mat Sto Turns Passed 956 | 52 239 263 402 Spaces Moved 539 | 47 160 154 178 Core 86 | 21 . 2 63 Treads . | . . . . Legs 424 | 26 160 152 86 Wheels . | . . . . Hover 29 | . . . 29 Flight . | . . . . Fastest Speed 50 | 50 120 50 50 Average Speed 122 | 88 120 119 135 Slowest Speed 200 | 120 120 120 200 Overloaded Moves . | . . . . Propulsion Burnouts . | . . . . Robots Hopped . | . . . . Potential Cave-ins . | . . . . Cave-ins Triggered . | . . . . Exploration Rate (%) 22 | 3 28 23 34 Regions Visited 3 Branch Regions 1 Pre-discovered Areas . | . . . . Known Exits Taken . | . . . . Unknown Exits Taken 3 | 1 1 1 . Scrap Searched . | . . . . Spaces Dug . | . . . . Terrain Destroyed . | . . . . Melee . | . . . . Projectile . | . . . . AOE . | . . . . Terrain Rammed . | . . . . Walls Destroyed . | . . . . Machines Disabled . | . . . . Actions | -11 -10 -9 -9 --------- Run | Yrd Mat Mat Sto Total 726 | 57 193 189 287 Wait 48 | 1 7 . 40 Move 536 | 46 159 153 178 Hop . | . . . . Pick Up 30 | 5 7 3 15 Fast Attach . | . . . . Attach 25 | 5 4 4 12 Detach 5 | . 2 2 1 Swap 2 | . 2 . . Drop 7 | . 4 2 1 Fire 62 | . 8 25 29 Melee . | . . . . Ram 6 | . . . 6 Kick 5 | . . . 5 Crush . | . . . . Escape Stasis . | . . . . Rewire . | . . . . Trap . | . . . . Miscellaneous . | . . . . Route ------- -11/Scrapyard -10/Materials -9/Materials -9/Storage History --------- Turn | Location | Event 24 | -11/Scrapyard | Discovered new exit (range 15) 53 | -11/Scrapyard | Entered Materials 54 | -10/Materials | Met a group of wandering Federalists 281 | -10/Materials | Discovered new exit (range 10) 292 | -10/Materials | Entered another Materials area 292 | -9/Materials | Evolved 2 slots: Utility x2 313 | -9/Materials | Build established: Mutant 536 | -9/Materials | Discovered new exit (range 14) 555 | -9/Materials | Entered Storage 586 | -9/Storage | Lost 6 parts (1p2n1u2w) 681 | -9/Storage | Core integrity fell below 50% 696 | -9/Storage | Core integrity fell below 20% 957 | -9/Storage | Destroyed by Y-45 Defender with Beam Rifle Last Messages --------------- 00935_ Acquired 7 matter. 00936_ K-01 Serf collects debris. 00937_ S-10 Pest destroyed. 00938_ Acquired 7 matter. 00939_ K-01 Serf collects debris. 00941_ Acquired 7 matter. 00942_ K-01 Serf collects debris. 00943_ S-10 Pest knocked back. 00944_ Acquired 7 matter. 00944_ K-01 Serf collects debris. 00946_ S-10 Pest destroyed. 00946_ K-01 Serf collects debris. 00947_ Acquired 4 matter. 00948_ K-01 Serf collects debris. 00949_ Kicked K-01 Serf out of the way. 00950_ K-01 Serf collects debris. 00953_ G-34 Mercenary destroyed. 00953_ K-01 Serf collects debris. 00956_ Y-45 Defender suffers critical hit (Destroy). 00956_ Destroyed Lgt. Treads. Map ----- +----------------------------------------------------+ | | | | | | | | | | | | | | | | | | | | | | | | | | | | | | | | | | | ???????????????????#############?????????????????? | | ???????????????????# ??????????????????? | | ???????????????????# #?????????????????? | | ???????????????????# """ """ #??????????###????? | | ???????????????????# """ """ #???????####%###### | | ??????????????????## """%""" #???????# %%! # | | ??????????????????# [=!* #???????# # | | ???????????????????# ! =% #???????# # | | ?????a????????????#######@######???????# # | | ??????????? %k%*= ########## # | | ??????????? *[= + """ """ # | | ??????????? a =%Y ########## """ """ # | | ????????????######/######## #????????#%""" """ # | | ???????????????? ????????#% #??????#######+##### | | ??????????????# ??????????# #??????? # / | | ??????????????????????????# #???????? # ##/# | | ??????????????????????????# k#???????? a # | | ??????????????????????????# +?????" """ # # " | | ??????????????????????????# # ?????? Y??# # " | | ????a?????????????????????# # ??????????# [# " | | ??????????????????????????# #???????????#^ %# " | | ?????????????????????????? #???????????# =# | | ??????????????????????????##+##???????????# #### | | ??????????????????????????????????????????# # ? | | ??????????????????????????????????????????# # | | ??????????????????????????????????????????+ # | | ??????????????????????????????????????????# # ] | | ??????????????????????????????????????????# # ] | | ??????????????????????????????????????????/ a + | | ??????????????????????????????????????????# # | | ??????????????????????????????????????????# # | | ??????????????????????????????????????????# #? | | ??????????????????????????????????????????# #? | +----------------------------------------------------+ Best States ------------- Heat Dissipation 28 Energy Generation 10 Energy Capacity 250 Matter Stores 300 Matter Capacity 300 Sight Range 16 Terrain Scan Density 10 Armor Coverage 150 Utility Shielding 33 Evasion (%) 55 Targeting Accuracy 5 Offensive Hacking 10 Item Schematics ----------------- None Robot Schematics ------------------ None Fabricated ------------ Nothing Repaired ---------- Nothing Studied --------- None Alien Tech Used ----------------- None Achievements -------------- None Challenges ------------ None Game ------ Seed ScanNullSteel Manual? 0 Play Time 00:12:56 Cumulative 3.5 hours Start 2026.08.04 @ 22:39:28 End 2026.08.04 @ 22:49:55 Sessions 1 Manual Loads 0 Difficulty Rogue Special Mode None Game No. 8 Rogue 8 Adventurer 0 Explorer 0 Win Type - Total 0 Types 0/0/0/0/0/0/0/0/0/0 Lore% 8 Gallery% 9 Achievement% 15 Wizard Run 0 Options --------- Layout 0 ASCII 0 Keyboard 1 Movement Numpad Keybinds 0 Fullscreen 1 Font 24/Smallcaps Map View 76x50 Zoom Use 0% Tactical HUD 1 Map Filters NONE Filters NONE Steam 1 RUN: 105c7a6b-accd-44ac-b007-f90ac1d97e0d